[Event "*** Titled Tuesday Blitz"]
[Site "Chess.com"]
[Date "2020.04.21"]
[Round "3"]
[White "GmSergioBarrientos"]
[Black "zmeeed67"]
[Result "0-1"]
[WhiteElo "2565"]
[BlackElo "2394"]
[TimeControl "180+1"]
[EndTime "10:29:04 PDT"]
[Termination "zmeeed67 won by resignation"]

1. d4 {[%clk 0:03:00.9]} 1... d5 {[%clk 0:02:59.8]} 2. c4 {[%clk 0:03:00.8]}
2... e6 {[%clk 0:03:00.3]} 3. Nf3 {[%clk 0:03:00.9]} 3... Nf6 {[%clk 0:03:00.3]}
4. g3 {[%clk 0:03:01.1]} 4... dxc4 {[%clk 0:02:58.2]} 5. Bg2 {[%clk 0:03:00.2]}
5... b5 {[%clk 0:02:58.2]} 6. a4 {[%clk 0:02:58.6]} 6... c6 {[%clk 0:02:57.3]}
7. O-O {[%clk 0:02:55]} 7... Bb7 {[%clk 0:02:54.9]} 8. b3 {[%clk 0:02:55.3]}
8... cxb3 {[%clk 0:02:53.4]} 9. Qxb3 {[%clk 0:02:56.2]} 9... b4 {[%clk
0:02:35.7]} 10. Rd1 {[%clk 0:02:45.2]} 10... a5 {[%clk 0:02:32]} 11. Ne5 {[%clk
0:02:42.5]} 11... Be7 {[%clk 0:02:29.2]} 12. Bg5 {[%clk 0:02:39.5]} 12... O-O
{[%clk 0:02:26.1]} 13. Nc3 {[%clk 0:02:34.9]} 13... Nd5 {[%clk 0:02:22.1]} 14.
Bxe7 {[%clk 0:02:32.9]} 14... Qxe7 {[%clk 0:02:23]} 15. Ne4 {[%clk 0:02:32.9]}
15... Nd7 {[%clk 0:02:14.8]} 16. Nxd7 {[%clk 0:02:23]} 16... Qxd7 {[%clk
0:02:15.7]} 17. Nc5 {[%clk 0:02:23.6]} 17... Qe7 {[%clk 0:02:16]} 18. e4 {[%clk
0:02:22.1]} 18... Nc3 {[%clk 0:02:07]} 19. Rd3 {[%clk 0:02:14]} 19... Ba6 {[%clk
0:02:05.4]} 20. Rxc3 {[%clk 0:02:14.1]} 20... bxc3 {[%clk 0:02:05.1]} 21. Qxc3
{[%clk 0:02:15]} 21... e5 {[%clk 0:01:53.3]} 22. dxe5 {[%clk 0:02:05.7]} 22...
Rfb8 {[%clk 0:01:28.4]} 23. h3 {[%clk 0:01:57]} 23... Rb4 {[%clk 0:01:22.3]} 24.
Qe3 {[%clk 0:01:51.8]} 24... h6 {[%clk 0:01:06]} 25. f4 {[%clk 0:01:49.6]} 25...
Bc4 {[%clk 0:00:26.4]} 26. Rd1 {[%clk 0:01:42.9]} 26... Rd8 {[%clk 0:00:24.9]}
27. Rc1 {[%clk 0:01:42.2]} 27... Be6 {[%clk 0:00:14.9]} 28. Kh2 {[%clk
0:01:31.1]} 28... Rb2 {[%clk 0:00:14.7]} 29. f5 {[%clk 0:01:05.7]} 29... Rdd2
{[%clk 0:00:14.3]} 30. Rg1 {[%clk 0:01:04.9]} 30... Bc4 {[%clk 0:00:11.2]} 31.
e6 {[%clk 0:00:42.4]} 31... Bf1 {[%clk 0:00:10.3]} 32. exf7+ {[%clk 0:00:24.6]}
32... Kxf7 {[%clk 0:00:11.2]} 33. Nb3 {[%clk 0:00:15]} 33... Rxg2+ {[%clk
0:00:10.7]} 34. Rxg2 {[%clk 0:00:15.1]} 34... Bxg2 {[%clk 0:00:07.9]} 35. Nd4
{[%clk 0:00:13.2]} 35... Bxe4+ {[%clk 0:00:06.4]} 36. Kg1 {[%clk 0:00:12.9]}
36... Bd5 {[%clk 0:00:05.4]} 37. Qc3 {[%clk 0:00:11.1]} 37... Rb1+ {[%clk
0:00:04.2]} 38. Kf2 {[%clk 0:00:10.6]} 38... Qe4 {[%clk 0:00:03.4]} 39. Ne6
{[%clk 0:00:09.4]} 39... Qg2+ {[%clk 0:00:03.1]} 40. Ke3 {[%clk 0:00:09.8]}
40... Qf3+ {[%clk 0:00:03.5]} 41. Kd4 {[%clk 0:00:10.3]} 41... Qxc3+ {[%clk
0:00:04.4]} 42. Kxc3 {[%clk 0:00:10.7]} 42... Bxe6 {[%clk 0:00:05.3]} 0-1

[Event "*** Titled Tuesday Blitz"]
[Site "Chess.com"]
[Date "2020.04.21"]
[Round "3"]
[White "Akhayan"]
[Black "yamalchess"]
[Result "0-1"]
[WhiteElo "2275"]
[BlackElo "2544"]
[TimeControl "180+1"]
[EndTime "10:29:04 PDT"]
[Termination "yamalchess won by resignation"]

1. d4 {[%clk 0:03:00.9]} 1... Nf6 {[%clk 0:02:59.2]} 2. Nf3 {[%clk 0:03:00.6]}
2... c5 {[%clk 0:02:59.2]} 3. c3 {[%clk 0:02:59.9]} 3... d5 {[%clk 0:02:58.3]}
4. Bf4 {[%clk 0:02:58.4]} 4... Nc6 {[%clk 0:02:58.2]} 5. e3 {[%clk 0:02:58.5]}
5... Qb6 {[%clk 0:02:58.6]} 6. Qb3 {[%clk 0:02:55.9]} 6... c4 {[%clk 0:02:57.9]}
7. Qc2 {[%clk 0:02:54.6]} 7... Bf5 {[%clk 0:02:57.7]} 8. Qc1 {[%clk 0:02:54.7]}
8... e6 {[%clk 0:02:56]} 9. h3 {[%clk 0:02:49.8]} 9... Be7 {[%clk 0:02:53.8]}
10. Be2 {[%clk 0:02:49.8]} 10... O-O {[%clk 0:02:53.1]} 11. O-O {[%clk
0:02:49.3]} 11... h6 {[%clk 0:02:53]} 12. Nbd2 {[%clk 0:02:46.5]} 12... Rfe8
{[%clk 0:02:44.1]} 13. Ne5 {[%clk 0:02:45.8]} 13... Nxe5 {[%clk 0:02:41.7]} 14.
Bxe5 {[%clk 0:02:45.8]} 14... Nd7 {[%clk 0:02:41.6]} 15. Bg3 {[%clk 0:02:43.1]}
15... Bd6 {[%clk 0:02:40.7]} 16. Bxd6 {[%clk 0:02:41.2]} 16... Qxd6 {[%clk
0:02:40.3]} 17. Nf3 {[%clk 0:02:40.9]} 17... e5 {[%clk 0:02:38.9]} 18. dxe5
{[%clk 0:02:40.3]} 18... Nxe5 {[%clk 0:02:38.6]} 19. Nxe5 {[%clk 0:02:38.9]}
19... Qxe5 {[%clk 0:02:38.4]} 20. Bf3 {[%clk 0:02:38.2]} 20... Rad8 {[%clk
0:02:38.2]} 21. Qd2 {[%clk 0:02:30.9]} 21... Bd3 {[%clk 0:02:36.3]} 22. Rfd1
{[%clk 0:02:27.7]} 22... f5 {[%clk 0:02:34.7]} 23. Be2 {[%clk 0:02:15.3]} 23...
Bxe2 {[%clk 0:02:31.5]} 24. Qxe2 {[%clk 0:02:14.8]} 24... f4 {[%clk 0:02:31.5]}
25. Rd4 {[%clk 0:01:59.6]} 25... fxe3 {[%clk 0:02:29.2]} 26. fxe3 {[%clk
0:01:57.8]} 26... Qxe3+ {[%clk 0:02:29]} 27. Qxe3 {[%clk 0:01:57.7]} 27... Rxe3
{[%clk 0:02:29.3]} 28. Rad1 {[%clk 0:01:57.5]} 28... Re2 {[%clk 0:02:28.9]} 29.
R1d2 {[%clk 0:01:53.7]} 29... Rxd2 {[%clk 0:02:28.4]} 30. Rxd2 {[%clk
0:01:53.4]} 30... Kf7 {[%clk 0:02:27.6]} 31. Kf2 {[%clk 0:01:53]} 31... Ke6
{[%clk 0:02:27.6]} 32. Re2+ {[%clk 0:01:47.1]} 32... Kd6 {[%clk 0:02:27]} 33.
Re3 {[%clk 0:01:41.9]} 33... Rd7 {[%clk 0:02:22.9]} 34. Rf3 {[%clk 0:01:36.1]}
34... Re7 {[%clk 0:02:17.3]} 35. Rf8 {[%clk 0:01:32.6]} 35... b5 {[%clk
0:02:07.6]} 36. Rd8+ {[%clk 0:01:31.4]} 36... Rd7 {[%clk 0:02:07.5]} 37. Rb8
{[%clk 0:01:30.9]} 37... Kc6 {[%clk 0:02:00.7]} 38. Ke3 {[%clk 0:01:29.2]} 38...
Re7+ {[%clk 0:02:00.7]} 39. Kf3 {[%clk 0:01:25.9]} 39... Re1 {[%clk 0:01:48.4]}
40. Rg8 {[%clk 0:01:19.6]} 40... Re7 {[%clk 0:01:44.8]} 41. g4 {[%clk
0:01:17.9]} 41... a5 {[%clk 0:01:43.7]} 42. h4 {[%clk 0:01:17.8]} 42... b4
{[%clk 0:01:38.1]} 43. g5 {[%clk 0:01:17.4]} 43... hxg5 {[%clk 0:01:36.4]} 44.
hxg5 {[%clk 0:01:17.4]} 44... bxc3 {[%clk 0:01:35.6]} 45. bxc3 {[%clk
0:01:16.9]} 45... Rb7 {[%clk 0:01:25.1]} 46. g6 {[%clk 0:01:14.4]} 46... Kc5
{[%clk 0:01:20.5]} 47. Rc8+ {[%clk 0:01:12.6]} 47... Kb5 {[%clk 0:01:18.5]} 48.
Rf8 {[%clk 0:01:08.2]} 48... Rb6 {[%clk 0:01:17.7]} 49. Rf5 {[%clk 0:00:55.9]}
49... Kc5 {[%clk 0:01:11.8]} 50. Rg5 {[%clk 0:00:54.5]} 50... Rb2 {[%clk
0:01:11.5]} 51. Rf5 {[%clk 0:00:41.9]} 51... Rc2 {[%clk 0:01:11.2]} 52. Rf7
{[%clk 0:00:40]} 52... Rxc3+ {[%clk 0:01:11]} 53. Kf4 {[%clk 0:00:39.7]} 53...
Rc1 {[%clk 0:01:07.2]} 54. Rxg7 {[%clk 0:00:39.5]} 54... d4 {[%clk 0:01:03.6]}
55. Rc7+ {[%clk 0:00:37.7]} 55... Kb4 {[%clk 0:01:02.9]} 56. Ke4 {[%clk
0:00:33.9]} 56... d3 {[%clk 0:01:01.1]} 57. Ke3 {[%clk 0:00:27.3]} 57... Kc3
{[%clk 0:00:57.4]} 58. Ra7 {[%clk 0:00:20.9]} 58... Rg1 {[%clk 0:00:52.7]} 59.
g7 {[%clk 0:00:19.8]} 59... Kc2 {[%clk 0:00:45.3]} 60. Rc7 {[%clk 0:00:18.2]}
60... c3 {[%clk 0:00:44]} 0-1

[Event "*** Titled Tuesday Blitz"]
[Site "Chess.com"]
[Date "2020.04.21"]
[Round "3"]
[White "maximnovik"]
[Black "Qingdom"]
[Result "1/2-1/2"]
[WhiteElo "2437"]
[BlackElo "2208"]
[TimeControl "180+1"]
[EndTime "10:29:04 PDT"]
[Termination "Game drawn by repetition"]

1. d4 {[%clk 0:03:00.6]} 1... d5 {[%clk 0:02:59.9]} 2. c4 {[%clk 0:03:00.5]}
2... e6 {[%clk 0:03:00.1]} 3. Nc3 {[%clk 0:03:00.3]} 3... c5 {[%clk 0:03:00.2]}
4. cxd5 {[%clk 0:03:00.3]} 4... exd5 {[%clk 0:03:00.5]} 5. Nf3 {[%clk
0:02:59.7]} 5... Nc6 {[%clk 0:03:00.5]} 6. g3 {[%clk 0:02:59.7]} 6... Nf6 {[%clk
0:02:59.8]} 7. Bg2 {[%clk 0:03:00]} 7... Be7 {[%clk 0:02:59.7]} 8. O-O {[%clk
0:03:00.4]} 8... O-O {[%clk 0:02:59.5]} 9. dxc5 {[%clk 0:02:59.4]} 9... Bxc5
{[%clk 0:02:55.9]} 10. b3 {[%clk 0:02:58.2]} 10... Re8 {[%clk 0:02:47.7]} 11.
Bb2 {[%clk 0:02:57.9]} 11... Bg4 {[%clk 0:02:44.4]} 12. Rc1 {[%clk 0:02:56.3]}
12... Bf8 {[%clk 0:02:42.4]} 13. h3 {[%clk 0:02:54.1]} 13... Bh5 {[%clk
0:02:41.3]} 14. e3 {[%clk 0:02:54.2]} 14... Qa5 {[%clk 0:02:28.5]} 15. a3 {[%clk
0:02:41.1]} 15... Rad8 {[%clk 0:02:28.3]} 16. b4 {[%clk 0:02:41.2]} 16... Qb6
{[%clk 0:02:15.3]} 17. Na4 {[%clk 0:02:38.7]} 17... Qb5 {[%clk 0:02:10]} 18.
Bxf6 {[%clk 0:02:37.2]} 18... gxf6 {[%clk 0:02:08.4]} 19. Nc3 {[%clk 0:02:34]}
19... Qc4 {[%clk 0:01:48.1]} 20. Ne2 {[%clk 0:02:31.8]} 20... Qa2 {[%clk
0:01:39.5]} 21. Ra1 {[%clk 0:02:09.3]} 21... Qb2 {[%clk 0:01:37.6]} 22. Nf4
{[%clk 0:02:07.5]} 22... Bg6 {[%clk 0:01:32.8]} 23. Qe2 {[%clk 0:01:36.1]} 23...
Qxe2 {[%clk 0:01:22]} 24. Nxe2 {[%clk 0:01:36.1]} 24... Bd3 {[%clk 0:01:15.5]}
25. Rfe1 {[%clk 0:01:33.9]} 25... Bxe2 {[%clk 0:00:53.9]} 26. Rxe2 {[%clk
0:01:33.9]} 26... d4 {[%clk 0:00:54.5]} 27. Rae1 {[%clk 0:01:28.7]} 27... d3
{[%clk 0:00:50.7]} 28. Rd2 {[%clk 0:01:28]} 28... a5 {[%clk 0:00:49.5]} 29. b5
{[%clk 0:01:23.9]} 29... Ne5 {[%clk 0:00:49.5]} 30. Nxe5 {[%clk 0:01:06.2]}
30... fxe5 {[%clk 0:00:49.3]} 31. Bxb7 {[%clk 0:00:53.6]} 31... Bxa3 {[%clk
0:00:48.4]} 32. Red1 {[%clk 0:00:53.4]} 32... e4 {[%clk 0:00:42.2]} 33. f3
{[%clk 0:00:46]} 33... f5 {[%clk 0:00:41.1]} 34. g4 {[%clk 0:00:44.6]} 34... Bc5
{[%clk 0:00:40.1]} 35. Rg2 {[%clk 0:00:24.4]} 35... Bxe3+ {[%clk 0:00:37.8]} 36.
Kf1 {[%clk 0:00:24.8]} 36... exf3 {[%clk 0:00:34.1]} 37. Bxf3 {[%clk 0:00:23.4]}
37... fxg4 {[%clk 0:00:33.1]} 38. Rxg4+ {[%clk 0:00:23.1]} 38... Kh8 {[%clk
0:00:32.3]} 39. b6 {[%clk 0:00:21.9]} 39... Rf8 {[%clk 0:00:30.6]} 40. Kg2
{[%clk 0:00:20.3]} 40... Bxb6 {[%clk 0:00:30]} 41. Be4 {[%clk 0:00:18.2]} 41...
Rg8 {[%clk 0:00:29.1]} 42. Rxd3 {[%clk 0:00:15.4]} 42... Rxd3 {[%clk 0:00:28.4]}
43. Bxd3 {[%clk 0:00:15.5]} 43... Rxg4+ {[%clk 0:00:28.5]} 44. hxg4 {[%clk
0:00:15.9]} 44... h6 {[%clk 0:00:26.7]} 45. Bb5 {[%clk 0:00:15.8]} 45... Kg7
{[%clk 0:00:26.7]} 46. Kh3 {[%clk 0:00:16.2]} 46... Kf6 {[%clk 0:00:27.3]} 47.
Kg3 {[%clk 0:00:16.6]} 47... Kg5 {[%clk 0:00:27.2]} 48. Kh3 {[%clk 0:00:16.8]}
48... Bc5 {[%clk 0:00:27.4]} 49. Bc6 {[%clk 0:00:15.5]} 49... Bb4 {[%clk
0:00:27.2]} 50. Bb5 {[%clk 0:00:15.7]} 50... Bc5 {[%clk 0:00:27.7]} 51. Bc6
{[%clk 0:00:16]} 51... Bb4 {[%clk 0:00:28.3]} 52. Bb5 {[%clk 0:00:16.4]} 52...
Bc5 {[%clk 0:00:28.9]} 1/2-1/2

[Event "*** Titled Tuesday Blitz"]
[Site "Chess.com"]
[Date "2020.04.21"]
[Round "3"]
[White "AvitalBor"]
[Black "Caracternin123"]
[Result "0-1"]
[WhiteElo "2794"]
[BlackElo "2637"]
[TimeControl "180+1"]
[EndTime "10:29:07 PDT"]
[Termination "Caracternin123 won by resignation"]

1. e4 {[%clk 0:03:00.9]} 1... Nf6 {[%clk 0:02:59.8]} 2. e5 {[%clk 0:03:00.9]}
2... Nd5 {[%clk 0:02:59.8]} 3. d4 {[%clk 0:03:01.8]} 3... d6 {[%clk 0:03:00.2]}
4. Nf3 {[%clk 0:03:02.7]} 4... g6 {[%clk 0:03:00.2]} 5. c3 {[%clk 0:02:56.3]}
5... Bg7 {[%clk 0:02:59.7]} 6. exd6 {[%clk 0:02:56.6]} 6... cxd6 {[%clk
0:02:59.6]} 7. Bd3 {[%clk 0:02:55.6]} 7... O-O {[%clk 0:02:59.4]} 8. O-O {[%clk
0:02:56.1]} 8... Nc6 {[%clk 0:02:59.3]} 9. Re1 {[%clk 0:02:55.1]} 9... e5 {[%clk
0:02:55.8]} 10. Na3 {[%clk 0:02:44.7]} 10... Nb6 {[%clk 0:02:07.8]} 11. Bg5
{[%clk 0:02:41.8]} 11... f6 {[%clk 0:02:07.2]} 12. Be3 {[%clk 0:02:36.5]} 12...
f5 {[%clk 0:01:49.3]} 13. dxe5 {[%clk 0:02:36.4]} 13... dxe5 {[%clk 0:01:50.2]}
14. Qb3+ {[%clk 0:02:35.9]} 14... Kh8 {[%clk 0:01:50.3]} 15. Rad1 {[%clk
0:02:36.5]} 15... Qe7 {[%clk 0:01:24]} 16. Bg5 {[%clk 0:02:09.7]} 16... Bf6
{[%clk 0:01:06.9]} 17. Bxf6+ {[%clk 0:02:02.4]} 17... Rxf6 {[%clk 0:01:00.9]}
18. Bb5 {[%clk 0:01:34.6]} 18... Be6 {[%clk 0:00:57.7]} 19. Qc2 {[%clk
0:01:33.5]} 19... e4 {[%clk 0:00:58.1]} 20. Bxc6 {[%clk 0:01:32.8]} 20... bxc6
{[%clk 0:00:58.5]} 21. Nd4 {[%clk 0:01:32.8]} 21... Bd7 {[%clk 0:00:56.3]} 22.
Ne2 {[%clk 0:01:11.5]} 22... Qc5 {[%clk 0:00:49.8]} 23. b4 {[%clk 0:01:07.9]}
23... Qf8 {[%clk 0:00:48.4]} 24. Ng3 {[%clk 0:00:54.2]} 24... a5 {[%clk
0:00:48]} 25. Nc4 {[%clk 0:00:50.5]} 25... Nxc4 {[%clk 0:00:45.8]} 26. Rxd7
{[%clk 0:00:50.3]} 26... Ne5 {[%clk 0:00:41.6]} 27. Rb7 {[%clk 0:00:47]} 27...
Nd3 {[%clk 0:00:40.8]} 28. Rd1 {[%clk 0:00:44.2]} 28... Rd6 {[%clk 0:00:27.5]}
29. bxa5 {[%clk 0:00:43.9]} 29... Rxa5 {[%clk 0:00:27.2]} 30. c4 {[%clk
0:00:44]} 30... Ra8 {[%clk 0:00:26.6]} 31. Qc3+ {[%clk 0:00:44]} 31... Kg8
{[%clk 0:00:26.2]} 32. Rdb1 {[%clk 0:00:43.9]} 32... Rad8 {[%clk 0:00:26.1]} 33.
h4 {[%clk 0:00:43.3]} 33... Nf4 {[%clk 0:00:25.9]} 34. Kh2 {[%clk 0:00:31.9]}
34... Nd3 {[%clk 0:00:25.8]} 35. c5 {[%clk 0:00:27.6]} 35... Re6 {[%clk
0:00:24.2]} 36. h5 {[%clk 0:00:25.4]} 36... f4 {[%clk 0:00:23.3]} 37. hxg6
{[%clk 0:00:15.5]} 37... fxg3+ {[%clk 0:00:22.8]} 38. fxg3 {[%clk 0:00:15.4]}
38... Qh6+ {[%clk 0:00:23]} 39. Kg1 {[%clk 0:00:15.2]} 39... Qe3+ {[%clk
0:00:23]} 40. Kh2 {[%clk 0:00:15.4]} 40... Rxg6 {[%clk 0:00:22.1]} 41. Qc4+
{[%clk 0:00:13.4]} 41... Kh8 {[%clk 0:00:21]} 42. Qc3+ {[%clk 0:00:13.6]} 42...
Qd4 {[%clk 0:00:21.4]} 43. Qxd4+ {[%clk 0:00:13.3]} 43... Rxd4 {[%clk
0:00:22.3]} 44. Rb8+ {[%clk 0:00:13.8]} 44... Kg7 {[%clk 0:00:22.8]} 45. R1b7+
{[%clk 0:00:14.4]} 45... Kh6 {[%clk 0:00:23.2]} 46. Rh8 {[%clk 0:00:14.3]} 46...
Rg7 {[%clk 0:00:23]} 47. Rb6 {[%clk 0:00:14.1]} 47... Ne5 {[%clk 0:00:22.2]} 48.
Re8 {[%clk 0:00:14.3]} 48... Ng4+ {[%clk 0:00:19.7]} 49. Kh3 {[%clk 0:00:14.8]}
49... Rg6 {[%clk 0:00:20]} 50. Re7 {[%clk 0:00:14.6]} 50... Rd1 {[%clk
0:00:19.8]} 51. Rb1 {[%clk 0:00:11.2]} 51... Rxb1 {[%clk 0:00:19.4]} 0-1

[Event "*** Titled Tuesday Blitz"]
[Site "Chess.com"]
[Date "2020.04.21"]
[Round "3"]
[White "Jeffinho023"]
[Black "gmcorrales"]
[Result "1-0"]
[WhiteElo "2483"]
[BlackElo "2821"]
[TimeControl "180+1"]
[EndTime "10:29:08 PDT"]
[Termination "Jeffinho023 won by checkmate"]

1. Nf3 {[%clk 0:03:00.9]} 1... c5 {[%clk 0:02:17.3]} 2. c4 {[%clk 0:02:57.8]}
2... Nc6 {[%clk 0:02:16.2]} 3. Nc3 {[%clk 0:02:57.4]} 3... e5 {[%clk 0:02:16.4]}
4. g3 {[%clk 0:02:56.8]} 4... g6 {[%clk 0:02:14.1]} 5. Bg2 {[%clk 0:02:56.7]}
5... Bg7 {[%clk 0:02:14.6]} 6. O-O {[%clk 0:02:57]} 6... Nge7 {[%clk 0:02:15.4]}
7. Rb1 {[%clk 0:02:54.1]} 7... d6 {[%clk 0:02:14.9]} 8. a3 {[%clk 0:02:53.5]}
8... Be6 {[%clk 0:02:13.4]} 9. d3 {[%clk 0:02:52.6]} 9... a5 {[%clk 0:02:13]}
10. Ne1 {[%clk 0:02:49]} 10... O-O {[%clk 0:02:10.7]} 11. Nc2 {[%clk 0:02:48]}
11... d5 {[%clk 0:02:11]} 12. cxd5 {[%clk 0:02:47.2]} 12... Nxd5 {[%clk
0:02:11.9]} 13. Ne3 {[%clk 0:02:39.3]} 13... Nde7 {[%clk 0:02:07.4]} 14. Bd2
{[%clk 0:02:34]} 14... b6 {[%clk 0:01:55.9]} 15. Ne4 {[%clk 0:01:52.7]} 15... h6
{[%clk 0:01:44.6]} 16. Nc4 {[%clk 0:01:43.3]} 16... Rb8 {[%clk 0:01:27.5]} 17.
b4 {[%clk 0:01:34.7]} 17... cxb4 {[%clk 0:01:27.4]} 18. axb4 {[%clk 0:01:34.6]}
18... a4 {[%clk 0:01:27.4]} 19. b5 {[%clk 0:01:33.8]} 19... Nd4 {[%clk
0:01:26.8]} 20. Bb4 {[%clk 0:01:25.4]} 20... f5 {[%clk 0:01:09.4]} 21. Ned2
{[%clk 0:01:24.1]} 21... Qd7 {[%clk 0:00:33.8]} 22. e3 {[%clk 0:01:13.7]} 22...
Nb3 {[%clk 0:00:27.9]} 23. Nxb3 {[%clk 0:01:13]} 23... axb3 {[%clk 0:00:28.8]}
24. Qxb3 {[%clk 0:01:12.7]} 24... Rfd8 {[%clk 0:00:28.8]} 25. Rfd1 {[%clk
0:01:09.8]} 25... Nd5 {[%clk 0:00:27.6]} 26. Be1 {[%clk 0:01:03.1]} 26... Nc7
{[%clk 0:00:25.3]} 27. Bc6 {[%clk 0:01:00.6]} 27... Qf7 {[%clk 0:00:25.9]} 28.
Qc2 {[%clk 0:00:59.6]} 28... e4 {[%clk 0:00:26]} 29. Na3 {[%clk 0:00:47.7]}
29... Ba2 {[%clk 0:00:25]} 30. Rb4 {[%clk 0:00:34.7]} 30... Bf8 {[%clk
0:00:24.8]} 31. Rb2 {[%clk 0:00:29.2]} 31... Be6 {[%clk 0:00:24.9]} 32. Nb1
{[%clk 0:00:26.1]} 32... exd3 {[%clk 0:00:22.3]} 33. Rxd3 {[%clk 0:00:26.1]}
33... Rxd3 {[%clk 0:00:20.4]} 34. Qxd3 {[%clk 0:00:27]} 34... Bc4 {[%clk
0:00:21.3]} 35. Qc2 {[%clk 0:00:24.6]} 35... Rd8 {[%clk 0:00:20.3]} 36. Nd2
{[%clk 0:00:24.1]} 36... Be6 {[%clk 0:00:19.8]} 37. Rb1 {[%clk 0:00:22.3]} 37...
Nd5 {[%clk 0:00:19]} 38. Nc4 {[%clk 0:00:21.1]} 38... Nf6 {[%clk 0:00:18]} 39.
Ne5 {[%clk 0:00:21.2]} 39... Qg7 {[%clk 0:00:16.9]} 40. Bc3 {[%clk 0:00:21.3]}
40... Nd5 {[%clk 0:00:15.3]} 41. Ba1 {[%clk 0:00:21.4]} 41... Nf6 {[%clk
0:00:09]} 42. Rd1 {[%clk 0:00:21.3]} 42... Rxd1+ {[%clk 0:00:07.9]} 43. Qxd1
{[%clk 0:00:22.2]} 43... Kh7 {[%clk 0:00:06.2]} 44. h4 {[%clk 0:00:21.6]} 44...
Qe7 {[%clk 0:00:06.3]} 45. Nd3 {[%clk 0:00:20.6]} 45... Ne4 {[%clk 0:00:05.9]}
46. Nf4 {[%clk 0:00:20.7]} 46... Bf7 {[%clk 0:00:06.3]} 47. Qd4 {[%clk
0:00:20.7]} 47... Bg7 {[%clk 0:00:01.5]} 48. Qxg7# {[%clk 0:00:20.3]} 1-0

[Event "*** Titled Tuesday Blitz"]
[Site "Chess.com"]
[Date "2020.04.21"]
[Round "3"]
[White "ferch1ni"]
[Black "11kevin"]
[Result "1-0"]
[WhiteElo "2324"]
[BlackElo "2546"]
[TimeControl "180+1"]
[EndTime "10:29:08 PDT"]
[Termination "ferch1ni won by checkmate"]

1. e4 {[%clk 0:02:59.6]} 1... e5 {[%clk 0:02:59.3]} 2. Nf3 {[%clk 0:03:00.1]}
2... Nc6 {[%clk 0:02:59.2]} 3. Bb5 {[%clk 0:03:00.8]} 3... a6 {[%clk 0:02:58.7]}
4. Ba4 {[%clk 0:03:01]} 4... Nf6 {[%clk 0:02:58.6]} 5. O-O {[%clk 0:02:59.8]}
5... Be7 {[%clk 0:02:59]} 6. d3 {[%clk 0:02:59.6]} 6... b5 {[%clk 0:02:57]} 7.
Bb3 {[%clk 0:02:59]} 7... O-O {[%clk 0:02:56.7]} 8. Nbd2 {[%clk 0:02:58.2]} 8...
d5 {[%clk 0:02:55.3]} 9. exd5 {[%clk 0:02:52.7]} 9... Nxd5 {[%clk 0:02:56.2]}
10. Re1 {[%clk 0:02:51.7]} 10... f6 {[%clk 0:02:46.1]} 11. a4 {[%clk 0:02:23.5]}
11... b4 {[%clk 0:02:31.5]} 12. d4 {[%clk 0:01:17]} 12... exd4 {[%clk
0:02:26.8]} 13. h3 {[%clk 0:01:02]} 13... Kh8 {[%clk 0:02:21.4]} 14. Ne4 {[%clk
0:00:36.1]} 14... Nb6 {[%clk 0:02:08.6]} 15. a5 {[%clk 0:00:34.6]} 15... Nd7
{[%clk 0:01:49.8]} 16. Nxd4 {[%clk 0:00:33.8]} 16... Nxd4 {[%clk 0:01:49.4]} 17.
Qxd4 {[%clk 0:00:34.7]} 17... Ne5 {[%clk 0:01:47.2]} 18. Be3 {[%clk 0:00:33.7]}
18... Bb7 {[%clk 0:01:45.2]} 19. Nc5 {[%clk 0:00:26]} 19... Bxc5 {[%clk
0:01:25.1]} 20. Qxc5 {[%clk 0:00:25.7]} 20... Rb8 {[%clk 0:01:22.2]} 21. Rad1
{[%clk 0:00:24.3]} 21... Qc8 {[%clk 0:01:21.7]} 22. Bf4 {[%clk 0:00:18.5]} 22...
Qf5 {[%clk 0:01:20.1]} 23. Bxe5 {[%clk 0:00:17.7]} 23... fxe5 {[%clk 0:01:20]}
24. Rxe5 {[%clk 0:00:18.2]} 24... Qg6 {[%clk 0:01:18.5]} 25. Rg5 {[%clk
0:00:18.2]} 25... Qf6 {[%clk 0:01:18.3]} 26. Rd7 {[%clk 0:00:16.9]} 26... g6
{[%clk 0:01:07.8]} 27. Re5 {[%clk 0:00:08.4]} 27... Rbe8 {[%clk 0:01:01.6]} 28.
Rde7 {[%clk 0:00:05.9]} 28... Rd8 {[%clk 0:00:53.2]} 29. Re1 {[%clk 0:00:02.4]}
29... Rd2 {[%clk 0:00:51]} 30. R7e2 {[%clk 0:00:02.6]} 30... Rd7 {[%clk
0:00:49.1]} 31. Re5 {[%clk 0:00:02.8]} 31... Rd6 {[%clk 0:00:45.7]} 32. R5e2
{[%clk 0:00:03]} 32... Rc6 {[%clk 0:00:45.8]} 33. Qxb4 {[%clk 0:00:02.7]} 33...
Qg5 {[%clk 0:00:40.9]} 34. Qxb7 {[%clk 0:00:01.6]} 34... Rcf6 {[%clk 0:00:37.8]}
35. Qe4 {[%clk 0:00:01.6]} 35... h5 {[%clk 0:00:37.2]} 36. Qe3 {[%clk 0:00:02]}
36... Qf5 {[%clk 0:00:37.2]} 37. Qg3 {[%clk 0:00:02.1]} 37... Kg7 {[%clk
0:00:35.2]} 38. Re7+ {[%clk 0:00:02.2]} 38... Kh6 {[%clk 0:00:34.9]} 39. Rxc7
{[%clk 0:00:02.3]} 39... g5 {[%clk 0:00:33.7]} 40. Ree7 {[%clk 0:00:01.8]} 40...
h4 {[%clk 0:00:32]} 41. Qe3 {[%clk 0:00:02.1]} 41... Rh8 {[%clk 0:00:29]} 42.
Rg7 {[%clk 0:00:01.2]} 42... Kh5 {[%clk 0:00:25.6]} 43. Rgf7 {[%clk 0:00:01.9]}
43... Rxf7 {[%clk 0:00:25.5]} 44. Rxf7 {[%clk 0:00:02.8]} 44... Qg6 {[%clk
0:00:24.6]} 45. Qf3+ {[%clk 0:00:03]} 45... Kh6 {[%clk 0:00:25.2]} 46. Rf6
{[%clk 0:00:03.8]} 46... Rg8 {[%clk 0:00:25.8]} 47. Rxg6+ {[%clk 0:00:04]} 47...
Rxg6 {[%clk 0:00:26.7]} 48. c3 {[%clk 0:00:04.7]} 48... Rg7 {[%clk 0:00:27]} 49.
Bc2 {[%clk 0:00:05.2]} 49... Rf7 {[%clk 0:00:27.9]} 50. Qxf7 {[%clk 0:00:04.9]}
50... g4 {[%clk 0:00:28.2]} 51. Qg6# {[%clk 0:00:05.8]} 1-0